bitfinex/quotes_SOLUSD_20250601
["timestamp","ask_amount","ask_price","bid_price","bid_amount"]
[1748791682501,20.25996863,154.19,154.14,20.25996863]
[1748791683074,6.48592554,154.18,154.14,20.25996863]
[1748791683786,6.48592554,154.18,154.15,20.25996863]
[1748791683970,6.48592554,154.18,154.14,20.25996863]
[1748791684177,6.48592554,154.18,154.16,20.25996863]
[1748791684398,6.4850843,154.2,154.16,20.25996863]
[1748791684817,26.74505293,154.2,154.15,20.25996863]
[1748791685116,22.69632319,154.21,154.15,20.25996863]
[1748791685306,20.25996863,154.2,154.16,20.25996863]
[1748791685612,20.25996863,154.2,154.15,20.25996863]
[1748791686200,6.48550489,154.19,154.15,20.25996863]
[1748791686503,26.74547352,154.19,154.15,20.25996863]
[1748791688434,20.25996863,154.2,154.15,20.25996863]
[1748791689416,42.95629182,154.21,154.16,20.25996863]
[1748791690827,6.48550489,154.19,154.16,20.25996863]
[1748791691034,6.48550489,154.19,154.17,20.25996863]
[1748791691408,6.48550489,154.19,154.16,20.25996863]
[1748791692146,6.48550489,154.19,154.13,6.48775669]
[1748791692308,6.48550489,154.19,154.16,20.25996863]
[1748791693030,26.74547352,154.19,154.15,20.25996863]
[1748791693411,6.48550489,154.19,154.15,20.25996863]
[1748791694425,6.48550489,154.19,154.16,20.25996863]
[1748791694743,6.48466377,154.21,154.17,20.25996863]
[1748791694920,26.7446324,154.21,154.16,20.25996863]
[1748791695124,20.25996863,154.2,154.15,20.25996863]
[1748791695309,6.48550489,154.19,154.15,20.25996863]
[1748791695935,26.74515473,154.2,154.15,20.25996863]
[1748791696350,12.96355356,154.22,154.16,20.25996863]
[1748791696621,2.70355356,154.22,154.19,20.25996863]
[1748791697720,2.70355356,154.22,154.17,6.48607158]
[1748791697919,2.70355356,154.22,154.19,20.25996863]
[1748791699646,2.70355356,154.22,154.2,20.25996863]
[1748791701425,2.70355356,154.22,154.19,20.25996863]
[1748791702439,2.70355356,154.22,154.2,20.25996863]
[1748791703123,2.70355356,154.22,154.2,20.75996863]
[1748791704821,2.70355356,154.22,154.21,20.25996863]
[1748791706426,2.70355356,154.22,154.21,26.7446324]
[1748791707144,2.70355356,154.22,154.21,52.7446324]
[1748791707437,2.70355356,154.22,154.21,92.3846324]
[1748791707939,2.70355356,154.22,154.21,102.6646324]
[1748791709241,2.70355356,154.22,154.21,121.31428126]
[1748791709426,18.4164957,154.32,154.22,18.64964886]
[1748791709634,18.4164957,154.32,154.28,20.25996863]
[1748791710033,1.6563,154.32,154.3,20.25996863]
[1748791710229,8.13637828,154.32,154.29,20.25996863]
[1748791711249,8.13634929,154.32,154.26,6.48253298]
[1748791711456,28.39631792,154.32,154.28,20.25996863]
[1748791711835,20.25996863,154.31,154.27,20.25996863]
[1748791712943,1.6563,154.32,154.27,20.25996863]
[1748791713140,1.6563,154.32,154.29,20.25996863]
[1748791713641,22.36270319,154.33,154.3,20.25996863]
[1748791714268,73.5908,154.36,154.25,48.69040733]
[1748791714269,7.9508,154.36,154.25,48.69040733]
[1748791714434,8.09182295,154.36,154.33,20.25996863]
[1748791715253,8.09182295,154.36,154.26,70.07144886]
[1748791715570,28.35179158,154.36,154.31,20.25996863]
[1748791715746,8.09182295,154.36,154.32,20.25996863]
[1748791716235,10.28,154.38,154.34,20.25996863]
[1748791716236,26.73749162,154.38,154.34,20.25996863]
[1748791716431,6.47752299,154.38,154.35,20.25996863]
[1748791716958,26.73749162,154.38,154.34,20.25996863]
[1748791717254,6.47752299,154.38,154.34,20.25996863]
[1748791717453,1.6134,154.39,154.36,20.25996863]
[1748791717657,20.25996863,154.41,154.36,20.25996863]
[1748791718241,26.73634038,154.41,154.36,20.25996863]
[1748791718556,26.73634038,154.41,154.37,20.25996863]
[1748791719039,26.73634038,154.41,154.33,4.67476059]
[1748791719040,26.73634038,154.41,154.36,20.25996863]
[1748791719240,20.25996863,154.4,154.36,20.25996863]
[1748791719438,20.25996863,154.41,154.37,20.25996863]
[1748791719641,37.13581372,154.42,154.38,20.25996863]
[1748791720158,20.25996863,154.41,154.34,6.47919265]
[1748791720351,20.25996863,154.4,154.35,20.25996863]
[1748791720862,20.25996863,154.37,154.32,20.25996863]
[1748791721058,6.5633,154.41,154.32,20.25996863]
[1748791721241,6.47668393,154.4,154.32,20.25996863]
[1748791721444,20.25996863,154.38,154.33,20.75996863]
[1748791721767,20.25996863,154.38,154.34,20.25996863]
[1748791722246,20.25996863,154.39,154.34,20.25996863]
[1748791722832,20.25996863,154.39,154.31,6.48042663]
[1748791722833,20.25996863,154.37,154.33,20.25996863]
[1748791724062,20.25996863,154.37,154.26,6.5905]
[1748791724063,20.25996863,154.34,154.26,6.5905]
[1748791724269,20.25996863,154.31,154.26,20.25996863]
[1748791724562,20.25996863,154.3,154.25,20.25996863]
[1748791724767,20.25996863,154.3,154.26,20.25996863]
[1748791725142,26.74095432,154.3,154.26,20.25996863]
[1748791725563,6.48098569,154.3,154.26,20.25996863]
[1748791725776,26.74095432,154.3,154.25,20.25996863]
[1748791725963,8.1847816,154.42,154.26,18.64964886]
[1748791726139,0.9111672,154.43,154.36,26.0]
[1748791726339,0.9111672,154.43,154.38,20.25996863]
[1748791726759,20.25996863,154.41,154.36,52.73794341]
[1748791726944,20.25996863,154.41,154.36,60.65996863]
[1748791727168,20.25996863,154.41,154.36,67.13831534]
[1748791727869,20.25996863,154.42,154.37,20.25996863]
[1748791728262,0.9111672,154.43,154.4,20.25996863]
[1748791728465,0.9111672,154.43,154.41,20.25996863]
[1748791728759,0.9111672,154.43,154.42,20.25996863]
[1748791728936,0.9111672,154.43,154.42,26.73581372]
[1748791731269,0.9111672,154.43,154.42,36.64577174]
[1748791731467,0.9111672,154.43,154.42,37.14577174]
[1748791734465,0.9111672,154.43,154.42,30.66992665]
[1748791734644,0.9111672,154.43,154.41,30.16992665]
[1748791735057,0.9111672,154.43,154.42,30.16992665]
[1748791735677,0.9111672,154.43,154.41,30.16992665]
[1748791737069,7.38659668,154.43,154.41,30.16992665]
[1748791738377,7.38659668,154.43,154.37,42.85785667]
[1748791738572,7.38659668,154.43,154.4,30.16992665]
[1748791739769,7.38659668,154.43,154.41,30.16992665]
[1748791740151,30.16992665,154.42,154.34,6.47906052]
[1748791740365,30.16992665,154.41,154.37,30.16992665]
[1748791740573,30.16992665,154.42,154.37,30.16992665]
[1748791740783,30.16992665,154.42,154.38,30.16992665]
[1748791741273,6.47626449,154.41,154.38,30.16992665]
[1748791741575,30.16992665,154.4,154.36,30.16992665]
[1748791741756,30.16992665,154.39,154.28,8.00260426]
[1748791742078,30.16992665,154.39,154.35,30.16992665]
[1748791742460,6.47626449,154.41,154.38,30.16992665]
[1748791742663,6.47586447,154.42,154.4,30.16992665]
[1748791742865,7.38673055,154.43,154.35,18.64964886]
[1748791743066,7.38673055,154.43,154.4,30.16992665]
[1748791743266,7.38673055,154.43,154.41,30.16992665]
[1748791743654,7.38673055,154.43,154.4,30.16992665]
[1748791744174,7.38673055,154.43,154.35,48.81957551]
[1748791744175,7.38673055,154.43,154.39,30.16992665]
[1748791744389,37.5566572,154.43,154.39,30.16992665]
[1748791745180,7.38673055,154.43,154.39,30.16992665]
[1748791745488,7.38673055,154.43,154.4,30.16992665]
[1748791746491,0.9111672,154.43,154.41,30.16992665]
[1748791746971,7.38663701,154.43,154.4,30.16992665]
[1748791749369,0.9111672,154.43,154.4,30.16992665]
[1748791749771,7.3866459,154.43,154.4,30.16992665]
[1748791750980,0.9111672,154.43,154.41,30.16992665]
[1748791751494,0.9111672,154.43,154.42,30.16992665]
[1748791751852,0.9111672,154.43,154.41,30.16992665]
[1748791753277,0.9111672,154.43,154.41,20.12157892]
[1748791755966,0.9111672,154.43,154.38,32.47739712]
[1748791756162,20.12157892,154.4,154.35,6.47836896]
[1748791756371,20.12157892,154.4,154.35,26.59994788]
[1748791756677,20.12157892,154.4,154.35,20.12157892]
[1748791757055,20.12157892,154.38,154.34,20.12157892]
[1748791757254,10.64,154.42,154.31,37.24188138]
[1748791757255,20.12157892,154.36,154.31,37.24188138]
[1748791757487,20.12157892,154.36,154.31,26.60188138]
[1748791759067,20.12157892,154.36,154.32,20.12157892]
[1748791759264,20.12157892,154.36,154.31,6.48030246]
[1748791759265,6.47763879,154.38,154.29,6.48122111]
[1748791759471,6.47763879,154.38,154.32,30.22053822]
[1748791759679,30.22053822,154.37,154.33,30.22053822]
[1748791759885,30.22053822,154.37,154.32,30.22053822]
[1748791760271,30.22053822,154.36,154.32,30.22053822]
[1748791761188,36.69895507,154.36,154.29,6.48130144]
[1748791761395,36.69895507,154.36,154.32,30.22053822]
[1748791761782,36.69895507,154.36,154.29,6.48130144]
[1748791761783,30.22053822,154.35,154.3,30.22053822]
[1748791762489,30.22053822,154.35,154.31,30.22053822]
[1748791762689,36.69954122,154.35,154.31,30.22053822]
[1748791762887,30.22053822,154.33,154.28,30.22053822]
[1748791763198,30.22053822,154.32,154.27,30.22053822]
[1748791763381,30.22053822,154.32,154.28,30.22053822]
[1748791764599,30.22053822,154.33,154.28,30.22053822]
[1748791764814,36.70016107,154.33,154.26,6.4825619]
[1748791764980,36.70016107,154.33,154.28,30.22053822]
[1748791765494,30.22053822,154.32,154.26,6.4825619]
[1748791765798,30.22053822,154.32,154.28,30.22053822]
[1748791766703,36.70016107,154.33,154.28,30.22053822]
[1748791767794,30.22053822,154.33,154.28,36.70222671]
[1748791768104,30.22053822,154.33,154.24,48.45449537]
[1748791768105,30.22053822,154.33,154.29,36.70179961]
[1748791768402,30.22053822,154.33,154.28,36.70214999]
[1748791769183,30.22053822,154.32,154.28,36.70214999]
[1748791769796,26.68032466,154.41,154.31,30.22053822]
[1748791769979,6.47710343,154.39,154.34,36.69972305]
[1748791770306,36.69764165,154.39,154.34,36.69972305]
[1748791770601,6.47710343,154.39,154.34,36.69972305]
[1748791770803,30.22053822,154.39,154.35,30.22053822]
[1748791771190,18.74221132,154.4,154.35,30.22053822]
[1748791771501,48.96274954,154.4,154.35,30.22053822]
[1748791771688,30.22053822,154.39,154.35,30.22053822]
[1748791771999,36.69771014,154.39,154.35,30.22053822]
[1748791773502,30.22053822,154.37,154.33,30.22053822]
[1748791773707,30.22053822,154.37,154.32,30.22053822]
[1748791774078,30.22053822,154.37,154.33,30.22053822]
[1748791774481,30.22053822,154.38,154.33,36.70006682]
[1748791775388,30.22053822,154.38,154.34,30.22053822]
[1748791775707,30.22053822,154.37,154.33,30.22053822]
[1748791779106,36.69848599,154.37,154.33,30.22053822]
[1748791780182,30.22053822,154.36,154.3,6.48047439]
[1748791780387,30.22053822,154.35,154.31,30.22053822]
[1748791780587,30.22053822,154.36,154.32,30.22053822]
[1748791780988,30.22053822,154.35,154.31,30.22053822]
[1748791781185,20.14798765,154.35,154.31,20.14798765]
[1748791781592,26.62656653,154.36,154.32,20.14798765]
[1748791782798,48.60564743,154.4,154.33,20.14798765]
[1748791782799,12.2655,154.4,154.33,20.14798765]
[1748791783004,20.14798765,154.38,154.34,20.14798765]
[1748791783711,12.2655,154.4,154.31,6.48023194]
[1748791783712,18.74233531,154.4,154.36,20.14798765]
[1748791783902,38.89032296,154.4,154.36,20.14798765]
[1748791784089,38.89032296,154.4,154.35,20.14798765]
[1748791784613,20.14798765,154.39,154.35,20.14798765]
[1748791784824,20.14798765,154.36,154.29,6.48130144]
[1748791785024,20.14798765,154.35,154.31,20.14798765]
[1748791785195,20.14798765,154.37,154.33,20.14798765]
[1748791785510,20.14798765,154.38,154.33,20.14798765]
[1748791785718,20.14798765,154.39,154.35,20.14798765]
[1748791786295,8.08233531,154.4,154.35,20.14798765]
[1748791786508,26.62511036,154.39,154.35,20.14798765]
[1748791787019,26.62511036,154.39,154.34,20.14798765]
[1748791787224,20.14798765,154.38,154.34,20.14798765]
[1748791787715,20.14798765,154.37,154.33,20.14798765]
[1748791788814,20.14798765,154.36,154.32,20.14798765]
[1748791789725,21.75348765,154.4,154.3,6.48088139]
[1748791789726,26.62509108,154.39,154.35,20.14798765]
[1748791789909,6.47710343,154.39,154.35,20.14798765]
[1748791790120,26.62509108,154.39,154.35,20.14798765]
[1748791790418,20.14798765,154.39,154.35,20.14798765]
[1748791792311,20.14798765,154.39,154.35,26.62668007]
[1748791793017,20.14798765,154.39,154.35,6.47869242]
[1748791793727,20.14798765,154.38,154.35,6.47869242]
[1748791795019,20.14798765,154.39,154.35,6.47869242]
[1748791795527,20.14798765,154.39,154.35,16.47869242]
[1748791796443,21.75348765,154.4,154.36,20.14798765]
[1748791796613,28.17866345,154.41,154.37,20.14798765]
[1748791797217,20.14798765,154.4,154.36,20.14798765]
[1748791798331,20.14798765,154.4,154.36,26.62623901]
[1748791799912,8.0306758,154.41,154.36,26.62623901]
[1748791800113,28.17866345,154.41,154.36,26.62623901]
[1748791800513,10.68,154.42,154.38,20.14798765]
[1748791801313,10.68,154.42,154.39,20.14798765]
[1748791801513,0.9111672,154.43,154.36,6.47825136]
[1748791801514,0.9111672,154.43,154.41,20.14798765]
[1748791801720,0.9111672,154.43,154.42,20.14798765]
[1748791803231,0.9111672,154.43,154.42,26.62383274]
[1748791803807,0.9111672,154.43,154.42,6.47584509]
[1748791804008,0.9111672,154.43,154.42,20.14798765]
[1748791804206,0.9111672,154.43,154.4,27.6317]
[1748791804207,0.9111672,154.43,154.4,20.14798765]
[1748791804506,0.9111672,154.43,154.41,20.14798765]
[1748791805437,0.9111672,154.43,154.42,20.14798765]
[1748791805735,11.05915485,154.46,154.42,20.14798765]
[1748791807024,11.05915485,154.46,154.42,26.62382665]
[1748791807826,165.7981,154.51,154.42,26.62382665]
[1748791807827,11.059155,154.57,154.45,26.0]
[1748791808032,16.16950104,154.62,154.49,64.79763651]
[1748791808235,20.14798765,154.56,154.49,86.64798765]
[1748791808943,1.5602,154.57,154.49,86.64798765]
[1748791809333,1.5602,154.57,154.49,115.28232718]
[1748791809528,47.28115565,154.6,154.49,115.28232718]
[1748791809723,30.13267832,154.56,154.49,96.63267832]
[1748791810040,30.13267832,154.54,154.49,36.60558918]
[1748791810216,30.13267832,154.54,154.49,30.13267832]
[1748791810419,36.60312842,154.55,154.49,30.13267832]
[1748791810638,30.13267832,154.53,154.48,30.13267832]
[1748791810817,36.60401806,154.53,154.48,30.13267832]
[1748791811014,36.60401806,154.53,154.49,30.13267832]
[1748791811439,8.03105172,154.54,154.49,30.13267832]
[1748791811614,38.16373004,154.54,154.49,30.13267832]
[1748791812339,1.5602,154.54,154.49,36.60558918]
[1748791813429,6.47125579,154.53,154.46,6.47416806]
[1748791813635,36.60393411,154.53,154.48,30.13267832]
[1748791814033,6.47172305,154.52,154.48,30.13267832]
[1748791815243,36.60440137,154.52,154.47,30.13267832]
[1748791815627,36.60440137,154.52,154.48,30.13267832]
[1748791816143,1.5602,154.54,154.48,30.13267832]
[1748791816144,6.47133919,154.53,154.48,30.13267832]
[1748791816341,1.5602,154.54,154.49,30.13267832]
[1748791816342,8.03113059,154.54,154.49,30.13267832]
[1748791817283,6.47125145,154.53,154.49,30.13267832]
[1748791817658,36.60392977,154.53,154.49,30.13267832]
[1748791817949,6.47125145,154.53,154.49,30.13267832]
[1748791818118,38.16377642,154.54,154.49,30.13267832]
[1748791818764,1.5602,154.54,154.49,36.60558918]
[1748791819045,30.13267832,154.53,154.45,6.47458724]
[1748791819249,30.13267832,154.53,154.49,30.13267832]
[1748791819448,30.13267832,154.53,154.45,46.91458724]
[1748791819745,8.03140706,154.54,154.49,30.13267832]
[1748791819928,38.16408538,154.54,154.49,30.13267832]
[1748791820532,1.5602,154.54,154.49,30.13267832]
[1748791822150,6.4712865,154.53,154.49,30.13267832]
[1748791822655,6.47166274,154.52,154.49,30.13267832]
[1748791823031,6.47129177,154.53,154.49,30.13267832]
[1748791823537,8.03108465,154.54,154.49,30.13267832]
[1748791827133,30.13267832,154.58,154.49,77.00558918]
[1748791827339,6.46919171,154.58,154.49,77.00558918]
[1748791827538,6.46963354,154.57,154.49,77.00558918]
[1748791828862,6.46877445,154.59,154.49,97.29033804]
[1748791829161,8.07771138,154.6,154.52,26.0]
[1748791829368,8.07771138,154.6,154.56,20.08297245]
[1748791829653,28.16068383,154.6,154.56,20.08297245]
[1748791830161,8.07771138,154.6,154.56,20.08297245]
[1748791830365,28.16068383,154.6,154.56,20.08297245]
[1748791833188,20.08297245,154.59,154.54,20.08297245]
[1748791833660,8.07771138,154.6,154.54,20.08297245]
[1748791833661,20.08297245,154.58,154.54,20.08297245]
[1748791834043,20.08297245,154.57,154.52,20.08297245]
[1748791834430,26.55281319,154.57,154.52,20.08297245]
[1748791834660,26.55281319,154.57,154.51,6.47197866]
[1748791834661,20.08297245,154.55,154.51,20.08297245]
[1748791835042,20.08297245,154.55,154.5,20.08297245]
[1748791835334,6.46984074,154.57,154.47,6.47374894]
[1748791835335,20.08297245,154.54,154.47,6.47374894]
[1748791835667,1.6009,154.53,154.47,20.08297245]
[1748791835967,1.6009,154.53,154.48,20.08297245]
[1748791835968,20.08297245,154.52,154.48,20.08297245]
[1748791836380,1.6009,154.53,154.5,20.08297245]
[1748791836684,8.0721548,154.53,154.5,20.08297245]
[1748791836844,8.0721548,154.53,154.49,20.08297245]
[1748791837040,8.0721548,154.53,154.5,20.08297245]
[1748791837041,1.6009,154.53,154.5,20.08297245]
[1748791837665,21.68387245,154.53,154.49,20.08297245]
[1748791837846,1.6009,154.53,154.49,20.08297245]
[1748791838756,1.6009,154.53,154.5,20.08297245]
[1748791840447,8.07223332,154.53,154.47,26.0]
[1748791840646,28.15520577,154.53,154.48,20.08297245]
[1748791840846,28.15520577,154.53,154.49,20.08297245]
[1748791841079,20.08297245,154.5,154.42,89.6]
[1748791841365,20.08297245,154.45,154.41,20.08297245]
[1748791841581,20.08297245,154.46,154.42,20.08297245]
[1748791841744,43.1389,154.5,154.42,20.08297245]
[1748791841941,20.08297245,154.46,154.42,20.08297245]
[1748791842170,20.08297245,154.46,154.38,32.47752299]
[1748791842345,6.47458724,154.45,154.41,20.08297245]
[1748791842544,26.55755969,154.45,154.41,20.08297245]
[1748791843874,16.1837504,154.48,154.41,20.08297245]
[1748791844081,20.08297245,154.45,154.41,20.08297245]
[1748791844451,20.08297245,154.45,154.38,26.0]
[1748791844659,1.6606,154.46,154.39,20.08297245]
[1748791844853,20.08297245,154.44,154.39,20.08297245]
[1748791845571,20.08297245,154.45,154.41,20.08297245]
[1748791846168,26.55793801,154.45,154.41,20.08297245]
[1748791846367,6.47496556,154.45,154.42,20.08297245]
[1748791846880,6.47496556,154.45,154.41,20.08297245]
[1748791847677,36.90028633,154.54,154.43,20.08297245]
[1748791847678,22.65306175,154.51,154.43,20.08297245]
[1748791847980,6.472073,154.51,154.42,18.64964886]
[1748791848162,26.55504545,154.51,154.47,20.08297245]
[1748791848358,26.55504545,154.51,154.46,20.08297245]
[1748791848576,20.08297245,154.49,154.42,6.47574007]
[1748791848783,20.08297245,154.49,154.44,20.08297245]
[1748791849661,6.47332988,154.48,154.44,20.08297245]
[1748791850065,20.08297245,154.5,154.46,20.08297245]
[1748791850875,6.4724919,154.5,154.47,20.08297245]
[1748791851366,6.4724919,154.5,154.46,20.08297245]
[1748791853667,26.55546435,154.5,154.46,20.08297245]
[1748791854361,26.55546435,154.5,154.45,20.08297245]
[1748791856072,6.4724919,154.5,154.45,20.08297245]
[1748791856261,26.55546435,154.5,154.45,20.08297245]
[1748791856460,26.55546435,154.5,154.46,20.08297245]
[1748791856872,6.472073,154.51,154.46,20.08297245]
[1748791857091,20.08297245,154.5,154.46,20.08297245]
[1748791858981,26.55504545,154.51,154.46,20.08297245]
[1748791859180,6.472073,154.51,154.48,20.08297245]
[1748791859381,28.21526915,154.52,154.48,20.08297245]
[1748791859563,39.05360992,154.54,154.49,20.08297245]
[1748791860284,25.44153279,154.54,154.5,20.08297245]
[1748791860590,26.55190683,154.59,154.53,20.08297245]
[1748791860901,26.55190683,154.59,154.5,26.0]
[1748791860902,6.46893438,154.59,154.55,20.08297245]
[1748791861993,6.46841523,154.6,154.55,20.08297245]
[1748791862366,6.46841523,154.6,154.56,20.08297245]
[1748791862572,26.55044108,154.62,154.57,20.08297245]
[1748791863088,20.08297245,154.61,154.56,20.08297245]
[1748791863296,20.08297245,154.57,154.51,6.47181098]
[1748791863469,20.08297245,154.55,154.5,20.08297245]
[1748791864169,1.6656,154.59,154.49,20.08297245]
[1748791864170,20.08297245,154.54,154.49,20.08297245]
[1748791864379,1.6656,154.59,154.48,26.0]
[1748791864380,20.08297245,154.53,154.48,46.08297245]
[1748791864588,20.08297245,154.53,154.48,26.0]
[1748791864884,20.08297245,154.52,154.48,20.08297245]
[1748791865282,6.47183428,154.52,154.48,20.08297245]
[1748791866298,16.17567678,154.56,154.49,20.08297245]
[1748791866475,20.08297245,154.53,154.49,20.08297245]
[1748791867299,30.15291413,154.53,154.49,30.15291413]
[1748791867591,36.62445217,154.53,154.49,30.15291413]
[1748791867987,36.62386569,154.54,154.5,30.15291413]
[1748791868190,30.15291413,154.54,154.5,30.15291413]
[1748791868373,6.46914219,154.58,154.51,30.15291413]
[1748791868579,36.62205632,154.58,154.53,30.15291413]
[1748791869818,36.62205632,154.58,154.53,36.62403041]
[1748791870488,30.15291413,154.58,154.54,30.15291413]
[1748791872881,8.13448304,154.59,154.54,30.15291413]
[1748791873085,30.15291413,154.58,154.54,30.15291413]
[1748791873572,38.28739717,154.59,154.54,30.15291413]
[1748791874391,1.6656,154.59,154.54,36.62360541]
[1748791874589,31.81851413,154.59,154.55,30.15291413]
[1748791875675,1.6656,154.59,154.55,30.15291413]
[1748791875891,31.81851413,154.59,154.55,30.15291413]
[1748791876193,38.28729931,154.59,154.55,30.15291413]
[1748791876384,38.28729931,154.59,154.54,6.47069128]
[1748791876572,38.28729931,154.59,154.54,30.15291413]
[1748791877383,30.15291413,154.58,154.53,30.15291413]
[1748791877883,8.13438518,154.59,154.54,30.15291413]
[1748791878089,30.15291413,154.58,154.54,30.15291413]
[1748791879083,36.62212052,154.58,154.54,30.15291413]
[1748791880122,6.46872372,154.59,154.54,30.15291413]
[1748791880284,36.62163785,154.59,154.55,30.15291413]
[1748791881501,36.62163785,154.59,154.5,115.6]
[1748791881502,30.15291413,154.56,154.5,115.6]
[1748791881711,30.15291413,154.56,154.51,30.15291413]
[1748791881892,30.15291413,154.56,154.52,30.15291413]
[1748791882088,30.15291413,154.57,154.52,30.15291413]
[1748791882401,22.64053302,154.59,154.54,30.15291413]
[1748791882589,6.46956071,154.57,154.54,30.15291413]
[1748791883416,6.46956071,154.57,154.53,30.15291413]
[1748791883696,6.46956071,154.57,154.54,30.15291413]
[1748791885001,16.1718093,154.59,154.54,36.62364147]
[1748791885002,6.46886986,154.59,154.54,36.62364147]
[1748791885308,6.46886986,154.59,154.55,30.15291413]
[1748791886406,36.62178399,154.59,154.55,30.15291413]
[1748791887211,17.18836977,154.6,154.56,30.15291413]
[1748791888505,6.46836977,154.6,154.56,30.15291413]
[1748791888709,30.15291413,154.61,154.56,30.15291413]
[1748791889214,20.08276009,154.61,154.56,20.08276009]
[1748791890000,6.46872372,154.59,154.56,20.08276009]
[1748791890694,6.46872372,154.59,154.53,6.47107293]
[1748791890900,6.46872372,154.59,154.56,20.08276009]
[1748791893011,7.6788,154.63,154.58,20.08276009]
[1748791893311,20.08276009,154.61,154.54,32.47081661]
[1748791893492,20.08276009,154.61,154.56,20.08276009]
[1748791893688,20.08276009,154.6,154.56,20.08276009]
[1748791894131,6.46872372,154.59,154.56,20.08276009]
[1748791894328,6.46872372,154.59,154.55,20.08276009]
[1748791894329,26.55148381,154.59,154.55,20.08276009]
[1748791895229,20.08276009,154.58,154.49,12.2918]
[1748791895396,20.08276009,154.56,154.52,20.08276009]
[1748791896092,6.47081661,154.54,154.49,10.68]
[1748791896294,6.47043716,154.55,154.51,20.08276009]
[1748791897392,26.55319725,154.55,154.51,20.08276009]
[1748791898102,20.08276009,154.54,154.5,20.08276009]
[1748791898311,20.08276009,154.52,154.47,20.08276009]
[1748791898696,20.08276009,154.51,154.47,20.08276009]
[1748791899615,20.08276009,154.52,154.47,20.08276009]
[1748791899849,6.47043716,154.55,154.48,20.08276009]
[1748791900119,20.08276009,154.53,154.48,20.08276009]
[1748791900415,26.55369175,154.54,154.49,20.08276009]
[1748791901018,20.08276009,154.52,154.47,20.08276009]
[1748791901417,20.08276009,154.51,154.47,20.08276009]
[1748791901993,20.08276009,154.5,154.45,17.15451422]
[1748791902306,26.55493989,154.51,154.46,20.08276009]
[1748791902703,6.2962,154.55,154.46,26.55684871]
[1748791902910,20.08276009,154.52,154.47,20.08276009]
[1748791903113,20.08276009,154.49,154.45,20.08276009]
[1748791903503,21.64656009,154.51,154.46,20.08276009]
[1748791903713,1.5638,154.51,154.47,20.08276009]
[1748791904403,21.64656009,154.51,154.46,26.55690026]
[1748791905907,1.5638,154.51,154.47,20.08276009]
[1748791906221,21.64656009,154.51,154.47,20.08276009]
[1748791906530,1.5638,154.51,154.47,26.55648796]
[1748791907030,21.64656009,154.51,154.47,20.08276009]
[1748791907233,28.11868291,154.51,154.47,20.08276009]
[1748791907620,20.08276009,154.5,154.46,20.08276009]
[1748791907814,8.03592282,154.51,154.46,20.08276009]
[1748791908129,28.11868291,154.51,154.46,20.08276009]
[1748791909933,20.08276009,154.5,154.45,6.47458724]
[1748791910122,20.08276009,154.5,154.46,20.08276009]
[1748791910321,6.47173105,154.52,154.47,20.08276009]
[1748791910525,26.55449114,154.52,154.47,20.08276009]
[1748791910926,20.08276009,154.51,154.47,20.08276009]
[1748791911109,20.08276009,154.51,154.46,20.08276009]
[1748791911307,20.08276009,154.51,154.45,6.47458724]
[1748791911512,20.08276009,154.5,154.46,20.08276009]
[1748791913025,26.55526229,154.5,154.46,20.08276009]
[1748791917738,6.4725022,154.5,154.46,20.08276009]
[1748791917915,26.55526229,154.5,154.46,20.08276009]
[1748791918122,26.55526229,154.5,154.46,26.55666846]
[1748791918123,20.08276009,154.5,154.46,26.55666846]
[1748791918437,6.47218107,154.51,154.47,20.08276009]
[1748791918438,26.55494116,154.51,154.47,20.08276009]
[1748791919419,26.55525357,154.5,154.46,20.08276009]
[1748791920538,6.47249348,154.5,154.46,20.08276009]
[1748791920741,26.55525357,154.5,154.46,20.08276009]
[1748791920943,26.7981973,154.53,154.46,26.55692157]
[1748791921149,6.46997929,154.56,154.52,20.08276009]
[1748791921329,20.08276009,154.54,154.49,40.12]
[1748791921537,19.87438458,154.57,154.49,40.12]
[1748791921538,20.08276009,154.53,154.49,40.12]
[1748791922023,20.08276009,154.54,154.49,60.20276009]
[1748791922222,36.04828637,154.57,154.49,60.20276009]
[1748791922425,20.08276009,154.54,154.49,60.20276009]
[1748791922657,20.08276009,154.55,154.5,20.08276009]
[1748791922837,20.08276009,154.56,154.51,20.08276009]
[1748791923140,20.08276009,154.56,154.49,46.59264781]
[1748791923343,19.87438458,154.57,154.5,20.08276009]
[1748791923532,20.08276009,154.55,154.51,20.08276009]
[1748791924045,6.46960232,154.57,154.54,20.08276009]
[1748791924420,6.46960232,154.57,154.53,20.08276009]
[1748791924621,26.55236241,154.57,154.53,20.08276009]
[1748791925330,20.08276009,154.56,154.51,20.08276009]
[1748791925521,26.55315801,154.55,154.49,6.4729035]
[1748791925727,20.08276009,154.53,154.48,20.08276009]
[1748791926125,20.08276009,154.52,154.47,20.08276009]
[1748791926544,20.08276009,154.51,154.47,20.08276009]
[1748791926753,20.08276009,154.51,154.46,30.70276009]
[1748791927247,24.19019274,154.55,154.47,20.08276009]
[1748791927248,20.08276009,154.52,154.47,20.08276009]
[1748791927629,26.55483309,154.51,154.47,20.08276009]
[1748791928022,26.55483309,154.51,154.45,6.47451713]